fUST/lending_fUST_20250610
["ID","MTS","AMOUNT","RATE_DAILY","PERIOD"]
[365212027,1749535847614,-224.14924135,0.00022465,2]
[365212028,1749535847623,-460.0,0.00022465,4]
[365212029,1749535847633,-460.0,0.00022465,4]
[365212030,1749535847642,-460.0,0.00022465,4]
[365212031,1749535847652,-338.04500064,0.00022465,4]
[365212032,1749535847661,-240.0,0.00022465,4]
[365212033,1749535847671,-460.0,0.00022465,4]
[365212034,1749535847680,-460.0,0.00022465,4]
[365212035,1749535847689,-460.0,0.00022465,4]
[365212036,1749535847699,-353.64054586,0.00022465,4]
[365212037,1749535847709,-460.0,0.00022465,4]
[365212038,1749535847718,-460.0,0.00022465,4]
[365212039,1749535847727,-460.0,0.00022465,4]
[365212040,1749535847737,-460.0,0.00022465,4]
[365212041,1749535847746,-460.0,0.00022465,4]
[365212042,1749535847756,-460.0,0.00022465,4]
[365212043,1749535847766,-1310.73,0.00022465,4]
[365212044,1749535847775,-460.0,0.00022465,4]
[365212045,1749535847784,-460.0,0.00022465,4]
[365212046,1749535847794,-460.0,0.00022465,4]
[365212047,1749535847803,-460.0,0.00022465,4]
[365212048,1749535847812,-355.01447795,0.00022465,4]
[365212049,1749535847822,-460.0,0.00022465,4]
[365212050,1749535847831,-669.91,0.00022465,4]
[365212051,1749535847841,-460.0,0.00022465,4]
[365212052,1749535847850,-460.0,0.00022465,4]
[365212053,1749535847860,-460.0,0.00022465,4]
[365212054,1749535847870,-460.0,0.00022465,2]
[365212055,1749535847879,-893.64,0.00022465,4]
[365212056,1749535847889,-3561.64,0.00022465,4]
[365212057,1749535847899,-460.0,0.00022465,4]
[365212058,1749535847908,-910.71,0.00022465,4]
[365212059,1749535847918,-330.18447392,0.00022465,4]
[365212060,1749535847927,-1028.51,0.00022465,4]
[365212061,1749535847937,-460.0,0.00022465,4]
[365212062,1749535847947,-1079.41,0.00022465,4]
[365212063,1749535847957,-460.0,0.00022465,4]
[365212064,1749535847967,-460.0,0.00022465,4]
[365212065,1749535847977,-460.0,0.00022465,4]
[365212066,1749535847986,-218.74280657,0.00022465,4]
[365212067,1749535847995,-360.0,0.00022465,4]
[365212068,1749535848005,-266.19380777,0.00022465,4]
[365212069,1749535848014,-460.0,0.00022465,4]
[365212070,1749535848023,-839.23,0.00022465,4]
[365212071,1749535848033,-460.0,0.00022465,4]
[365212072,1749535848043,-460.0,0.00022465,4]
[365212073,1749535848053,-460.0,0.00022465,4]
[365212074,1749535848063,-225.49271411,0.00022465,4]
[365212075,1749535848073,-1128.69,0.00022465,4]
[365212076,1749535848149,-460.0,0.00022465,4]
[365212077,1749535848165,-460.0,0.00022465,4]
[365212078,1749535848175,-532.23156361,0.00022486,7]
[365212079,1749535848185,-1925.27,0.000225,7]
[365212080,1749535848195,-43641.15,0.000225,2]
[365212081,1749535848204,-254.863323,0.000225,7]
[365212082,1749535848214,-152.185453,0.000225,7]
[365212083,1749535848223,-151.0,0.000225,7]
[365212084,1749535848233,-151.0,0.000225,7]
[365212085,1749535848242,-500.51997198,0.00022521,2]
[365212086,1749535848252,-1000.0,0.00022521,2]
[365212087,1749535848262,-1448.0,0.00022549,7]
[365212088,1749535848271,-243.08481715,0.0002255,2]
[365212089,1749535848282,-1406.78539508,0.00022583,2]
[365212090,1749535848291,-160.02203713,0.00022583,2]
[365212091,1749535848301,-207.4,0.00022583,2]
[365212092,1749535848310,-1275.99747644,0.00022583,2]
[365212093,1749535848320,-500.0,0.00022583,2]
[365212094,1749535848330,-500.0,0.00022583,2]
[365212095,1749535848340,-500.0,0.00022583,2]
[365212096,1749535848349,-500.0,0.00022583,2]
[365212097,1749535848358,-500.0,0.00022583,2]
[365212098,1749535848368,-500.0,0.00022583,2]
[365212099,1749535848378,-500.0,0.00022583,2]
[365212100,1749535848387,-500.0,0.00022583,2]
[365212101,1749535848397,-500.0,0.00022583,2]
[365212102,1749535848407,-500.0,0.00022583,2]
[365212103,1749535848416,-500.0,0.00022583,2]
[365212104,1749535848426,-543.60360123,0.00022583,2]
[365212105,1749535848435,-150.0,0.00022603,2]
[365212106,1749535848445,-532.23156361,0.00022659,7]
[365212107,1749535848455,-150.184,0.0002266,2]
[365212108,1749535848464,-150.0,0.0002266,2]
[365212109,1749535848473,-150.0,0.0002266,2]
[365212110,1749535848483,-963.0,0.0002266,2]
[365212111,1749535848492,-2160.0,0.0002266,2]
[365212112,1749535848502,-653.0,0.0002266,2]
[365212113,1749535848511,-405.0,0.0002266,2]
[365212114,1749535848520,-160.0,0.00022661,4]
[365212115,1749535848530,-1448.0,0.00022673,7]
[365212116,1749535848540,-500.0,0.00022675,2]
[365212117,1749535848549,-297.76637113,0.00022739,4]
[365212118,1749535848558,-537.70461231,0.00022739,4]
[365212119,1749535848568,-460.0,0.00022739,4]
[365212120,1749535848578,-460.0,0.00022739,4]
[365212121,1749535848587,-154.05847034,0.00022739,4]
[365212122,1749535848597,-460.0,0.00022739,4]
[365212123,1749535848606,-521.34835705,0.00022739,4]
[365212124,1749535848616,-460.0,0.00022739,4]
[365212125,1749535848625,-460.0,0.00022739,4]
[365212126,1749535848635,-317.19728997,0.00022739,4]
[365212127,1749535848645,-460.0,0.00022739,4]
[365212128,1749535848654,-532.31887326,0.00022739,4]
[365212129,1749535848664,-460.0,0.00022739,4]
[365212130,1749535848673,-460.0,0.00022739,4]
[365212131,1749535848683,-460.0,0.00022739,4]
[365212132,1749535848692,-460.0,0.00022739,4]
[365212133,1749535848703,-200.0,0.00022739,4]
[365212134,1749535848713,-346.29265577,0.00022739,4]
[365212135,1749535848722,-460.0,0.00022739,4]
[365212136,1749535848733,-460.0,0.00022739,4]
[365212137,1749535848742,-460.0,0.00022739,4]
[365212138,1749535848752,-460.0,0.00022739,4]
[365212139,1749535848762,-460.0,0.00022739,4]
[365212140,1749535848772,-460.0,0.00022739,4]
[365212141,1749535848782,-460.0,0.00022739,4]
[365212142,1749535848792,-1310.73,0.00022739,4]
[365212143,1749535848802,-460.0,0.00022739,4]
[365212144,1749535848811,-200.0,0.00022739,4]
[365212145,1749535848821,-460.0,0.00022739,4]
[365212146,1749535848832,-200.0,0.00022739,4]
[365212147,1749535848842,-460.0,0.00022739,4]
[365212148,1749535848852,-669.91,0.00022739,4]
[365212149,1749535848861,-460.0,0.00022739,4]
[365212150,1749535848871,-320.0,0.00022739,4]
[365212151,1749535848881,-460.0,0.00022739,2]
[365212152,1749535848891,-460.0,0.00022739,4]
[365212153,1749535848901,-893.64,0.00022739,4]
[365212154,1749535848911,-3561.64,0.00022739,4]
[365212155,1749535848921,-200.0,0.00022739,4]
[365212156,1749535848930,-910.71,0.00022739,4]
[365212157,1749535848940,-1028.51,0.00022739,4]
[365212158,1749535848951,-460.0,0.00022739,4]
[365212159,1749535848961,-1079.41,0.00022739,4]
[365212160,1749535848971,-460.0,0.00022739,4]
[365212161,1749535848981,-460.0,0.00022739,4]
[365212162,1749535848991,-460.0,0.00022739,4]
[365212163,1749535849001,-587.44259085,0.00022739,4]
[365212164,1749535849010,-839.23,0.00022739,4]
[365212165,1749535849021,-460.0,0.00022739,4]
[365212166,1749535849030,-460.0,0.00022739,4]
[365212167,1749535849040,-460.0,0.00022739,4]
[365212168,1749535849050,-1128.69,0.00022739,4]
[365212169,1749535849059,-460.0,0.00022739,4]
[365212170,1749535849069,-259.87717317,0.00022739,4]
[365212171,1749535849079,-1500.0,0.00022768,2]
[365212172,1749535849089,-1500.0,0.00022768,2]
[365212173,1749535849099,-996.96870263,0.00022768,2]
[365212174,1749535849111,-1800.0,0.00022768,2]
[365212175,1749535849120,-1500.0,0.00022768,2]
[365212176,1749535849130,-1448.0,0.00022796,7]
[365212177,1749535849139,-501.75308559,0.00022821,2]
[365212178,1749535849150,-501.71124826,0.00022821,2]
[365212179,1749535849160,-532.23156361,0.00022831,8]
[365212180,1749535849170,-240.0,0.00022836,2]
[365212181,1749535849180,-630.59374506,0.0002289,2]
[365212182,1749535849191,-151.0,0.000229,7]
[365212183,1749535849202,-1448.0,0.00022919,7]
[365212184,1749535849211,-2729.15,0.00022936,2]
[365212185,1749535849222,-1000.0,0.0002294,2]
[365212186,1749535849231,-268.0,0.0002295,7]
[365212187,1749535849241,-163.207857,0.0002295,7]
[365212188,1749535849251,-163.207857,0.0002295,7]
[365212189,1749535849260,-151.0,0.0002295,7]
[365212190,1749535849270,-151.0,0.0002295,7]
[365212191,1749535849280,-181.203466,0.0002295,7]
[365212192,1749535849290,-39419.97431085,0.0002295,7]
[365212193,1749535849299,-39419.97431085,0.0002295,7]
[365212194,1749535849310,-500.57016739,0.00022973,2]
[365212195,1749535849319,-500.0,0.00022973,2]
[365212196,1749535849328,-185.0,0.00023,7]
[365212197,1749535849339,-185.0,0.00023,7]
[365212198,1749535849348,-185.0,0.00023,6]
[365212199,1749535849358,-185.0,0.00023,6]
[365212200,1749535849368,-532.23156361,0.00023003,8]
[365212201,1749535849377,-460.0,0.00023013,4]
[365212202,1749535849386,-412.63281644,0.00023013,4]
[365212203,1749535849396,-160.0,0.00023013,4]
[365212204,1749535849405,-460.0,0.00023013,4]
[365212205,1749535849415,-482.51268549,0.00023013,4]
[365212206,1749535849425,-460.0,0.00023013,4]
[365212207,1749535849435,-460.0,0.00023013,4]
[365212208,1749535849445,-460.0,0.00023013,4]
[365212209,1749535849455,-460.0,0.00023013,4]
[365212210,1749535849464,-460.0,0.00023013,4]
[365212211,1749535849474,-173.26099967,0.00023013,4]
[365212212,1749535849483,-260.0,0.00023013,4]
[365212213,1749535849493,-460.0,0.00023013,4]
[365212214,1749535849502,-460.0,0.00023013,4]
[365212215,1749535849512,-570.0,0.00023013,4]
[365212216,1749535849522,-460.0,0.00023013,4]
[365212217,1749535849532,-460.0,0.00023013,4]
[365212218,1749535849541,-1310.73,0.00023013,4]
[365212219,1749535849550,-460.0,0.00023013,4]
[365212220,1749535849559,-152.997581,0.00023013,7]
[365212221,1749535849568,-460.0,0.00023013,4]
[365212222,1749535849577,-460.0,0.00023013,4]
[365212223,1749535849587,-669.91,0.00023013,4]
[365212224,1749535849596,-460.0,0.00023013,4]
[365212225,1749535849606,-460.0,0.00023013,2]
[365212226,1749535849615,-460.0,0.00023013,4]
[365212227,1749535849624,-893.64,0.00023013,4]
[365212228,1749535849701,-3561.64,0.00023013,4]
[365212229,1749535849718,-910.71,0.00023013,4]
[365212230,1749535849728,-1028.51,0.00023013,4]
[365212231,1749535849738,-460.0,0.00023013,4]
[365212232,1749535849747,-1079.41,0.00023013,4]
[365212233,1749535849757,-460.0,0.00023013,4]
[365212234,1749535849767,-460.0,0.00023013,4]
[365212235,1749535849776,-460.0,0.00023013,4]
[365212236,1749535849786,-839.23,0.00023013,4]
[365212237,1749535849795,-460.0,0.00023013,4]
[365212238,1749535849805,-263.07023887,0.00023013,4]
[365212239,1749535849814,-460.0,0.00023013,4]
[365212240,1749535849824,-1128.69,0.00023013,4]
[365212241,1749535849833,-460.0,0.00023013,4]
[365212242,1749535849843,-1448.0,0.00023043,7]
[365212243,1749535849852,-968.0,0.00023051,2]
[365212244,1749535849861,-375.6232858,0.00023068,2]
[365212245,1749535849871,-243.08481715,0.00023069,2]
[365212246,1749535849880,-163.7222236,0.00023123,2]
[365212247,1749535849890,-1448.0,0.00023166,7]
[365212248,1749535849899,-600.0,0.00023171,2]
[365212249,1749535849909,-151.0,0.00023171,7]
[365212250,1749535849919,-151.0,0.00023171,7]
[365212251,1749535849928,-532.23156361,0.00023176,8]
[365212252,1749535849937,-968.0,0.00023199,2]
[365212253,1749535849947,-151.0,0.000232,8]
[365212254,1749535849957,-555.29053022,0.00023223,2]
[365212255,1749535849967,-283.16,0.00023287,4]
[365212256,1749535849975,-160.0,0.00023287,4]
[365212257,1749535849985,-460.0,0.00023287,4]
[365212258,1749535849995,-460.0,0.00023287,4]
[365212259,1749535850004,-460.0,0.00023287,4]
[365212260,1749535850014,-460.0,0.00023287,4]
[365212261,1749535850023,-460.0,0.00023287,4]
[365212262,1749535850032,-340.0,0.00023287,4]
[365212263,1749535850042,-460.0,0.00023287,4]
[365212264,1749535850051,-160.0,0.00023287,4]
[365212265,1749535850061,-460.0,0.00023287,4]
[365212266,1749535850070,-1310.73,0.00023287,4]
[365212267,1749535850079,-460.0,0.00023287,4]
[365212268,1749535850089,-460.0,0.00023287,4]
[365212269,1749535850099,-165.3071307,0.00023287,4]
[365212270,1749535850110,-669.91,0.00023287,4]
[365212271,1749535850120,-173.84241964,0.00023287,4]
[365212272,1749535850130,-460.0,0.00023287,2]
[365212273,1749535850139,-460.0,0.00023287,4]
[365212274,1749535850148,-893.64,0.00023287,4]
[365212275,1749535850158,-3561.64,0.00023287,4]
[365212276,1749535850167,-910.71,0.00023287,4]
[365212277,1749535850177,-1028.51,0.00023287,4]
[365212278,1749535850187,-460.0,0.00023287,4]
[365212279,1749535850197,-1079.41,0.00023287,4]
[365212280,1749535850207,-460.0,0.00023287,4]
[365212281,1749535850216,-460.0,0.00023287,4]
[365212282,1749535850226,-460.0,0.00023287,4]
[365212283,1749535850236,-839.23,0.00023287,4]
[365212284,1749535850245,-460.0,0.00023287,4]
[365212285,1749535850254,-460.0,0.00023287,4]
[365212286,1749535850263,-1128.69,0.00023287,4]
[365212287,1749535850273,-460.0,0.00023287,4]
[365212288,1749535850282,-1448.0,0.00023289,7]
[365212289,1749535850292,-68738.79,0.000233,7]
[365212290,1749535850302,-2000.0,0.00023316,2]
[365212291,1749535850311,-2000.0,0.00023316,2]
[365212292,1749535850320,-2400.0,0.00023316,2]
[365212293,1749535850330,-2000.0,0.00023316,2]
[365212294,1749535850339,-532.23156361,0.00023348,9]
[365212295,1749535850347,-419.94,0.000234,7]
[365212296,1749535850356,-151.0,0.000234,8]
[365212297,1749535850366,-621995.87656947,0.000234,2]
[365212298,1749535850475,-26991.12483091,0.000234,2]
[365212299,1749535850488,-5492.74078485,0.000234,2]
[365212300,1749535850802,-5000.0,0.00020884,6]
[365212301,1749535850811,-500.0,0.0002109,2]
[365212302,1749535850821,-500.0,0.0002109,2]
[365212303,1749535850830,-402.10585387,0.0002109,2]
[365212304,1749535850839,-460.0,0.00021095,4]
[365212305,1749535850848,-460.0,0.00021095,4]
[365212306,1749535850858,-544.46,0.00021095,4]
[365212307,1749535850867,-460.0,0.00021095,4]
[365212308,1749535850877,-460.0,0.00021369,4]
[365212309,1749535850886,-842.5625,0.00022,7]
[365212310,1749535850895,-18067.01191626,0.000234,2]
[365212311,1749535850906,-878.7353287,0.000234,2]
[365212316,1749535955287,-595.45,0.00020165,2]
[365212317,1749535955308,-5000.0,0.00020879,6]
[365212318,1749535955330,-164.11610672,0.0002099,2]
[365212319,1749535955351,-428.80843973,0.00021073,2]
[365212320,1749535955372,-300.0,0.00021089,2]
[365212321,1749535955392,-22586.78881896,0.0002109,2]
[365212322,1749535955412,-380.46754727,0.00021095,4]
[365212323,1749535955433,-518.80157377,0.00021095,4]
[365212324,1749535955455,-460.0,0.00021095,4]
[365212325,1749535955476,-380.0,0.00021095,4]
[365212326,1749535955498,-160.0,0.00021095,2]
[365212327,1749535955520,-460.0,0.00021095,4]
[365212328,1749535955541,-460.0,0.00021095,4]
[365212329,1749535955563,-460.0,0.00021095,4]
[365212330,1749535955585,-460.0,0.00021095,4]
[365212331,1749535955607,-331.25063392,0.00021095,4]
[365212332,1749535955629,-460.0,0.00021095,4]
[365212333,1749535955652,-460.0,0.00021095,4]
[365212334,1749535955677,-460.0,0.00021095,4]
[365212335,1749535955700,-460.0,0.00021095,4]
[365212336,1749535955721,-460.0,0.00021095,4]
[365212337,1749535955743,-460.0,0.00021095,4]
[365212338,1749535955764,-460.0,0.00021095,4]
[365212339,1749535955787,-460.0,0.00021095,4]
[365212340,1749535955808,-430.0,0.00021095,4]
[365212341,1749535955832,-460.0,0.00021095,4]
[365212342,1749535955854,-460.0,0.00021095,4]
[365212343,1749535955875,-460.0,0.00021095,4]
[365212344,1749535955897,-460.0,0.00021095,4]
[365212345,1749535955920,-460.0,0.00021095,4]
[365212346,1749535955941,-420.0,0.00021095,4]
[365212347,1749535955963,-420.0,0.00021095,4]
[365212348,1749535955983,-460.0,0.00021095,4]
[365212349,1749535956003,-500.0,0.00021095,4]
[365212350,1749535956031,-460.0,0.00021095,4]
[365212351,1749535956054,-460.0,0.00021095,4]
[365212352,1749535956078,-872.11,0.00021095,4]
[365212353,1749535956101,-460.0,0.00021095,4]
[365212354,1749535956124,-460.0,0.00021095,4]
[365212355,1749535956146,-460.0,0.00021095,4]
[365212356,1749535956171,-460.0,0.00021095,4]
[365212357,1749535956192,-286.54104373,0.00021095,4]
[365212358,1749535956211,-460.0,0.00021095,4]
[365212359,1749535956233,-420.0,0.00021095,4]
[365212360,1749535956253,-420.0,0.00021095,4]
[365212361,1749535956274,-440.0,0.00021095,4]
[365212362,1749535956295,-456.98,0.00021095,4]
[365212363,1749535956317,-460.0,0.00021095,4]
[365212364,1749535956340,-460.0,0.00021095,4]
[365212365,1749535956363,-460.0,0.00021095,4]
[365212366,1749535956385,-339.22,0.000211,2]
[365212367,1749535956411,-1190.9,0.00021125,2]
[365212368,1749535956432,-460.0,0.00021369,4]
[365212369,1749535956454,-398.29188385,0.00021369,4]
[365212370,1749535956476,-460.0,0.00021369,4]
[365212371,1749535956497,-460.0,0.00021369,4]
[365212372,1749535956520,-475.31971792,0.00021369,4]
[365212373,1749535956545,-460.0,0.00021369,4]
[365212374,1749535956567,-460.0,0.00021369,4]
[365212375,1749535956590,-460.0,0.00021369,4]
[365212376,1749535956613,-375.8,0.00021369,4]
[365212377,1749535956635,-460.0,0.00021369,4]
[365212378,1749535956656,-460.0,0.00021369,4]
[365212379,1749535956679,-460.0,0.00021369,4]
[365212380,1749535956700,-408.20320171,0.00021369,4]
[365212381,1749535956722,-460.0,0.00021369,4]
[365212382,1749535956743,-460.0,0.00021369,4]
[365212383,1749535956767,-872.11,0.00021369,4]
[365212384,1749535956791,-460.0,0.00021369,4]
[365212385,1749535956812,-460.0,0.00021369,4]
[365212386,1749535956835,-460.0,0.00021369,4]
[365212387,1749535956857,-335.88707755,0.00021369,4]
[365212388,1749535956880,-460.0,0.00021369,4]
[365212389,1749535956900,-328.04963271,0.00021369,4]
[365212390,1749535956922,-460.0,0.00021369,4]
[365212391,1749535956944,-500.0,0.00021642,2]
[365212392,1749535956967,-500.0,0.00021642,2]
[365212393,1749535956988,-500.0,0.00021642,2]
[365212394,1749535957012,-500.0,0.00021642,2]
[365212395,1749535957035,-500.0,0.00021642,2]
[365212396,1749535957057,-460.0,0.00021643,4]
[365212397,1749535957079,-309.53613733,0.00021643,4]
[365212398,1749535957104,-460.0,0.00021643,4]
[365212399,1749535957127,-460.0,0.00021643,4]
[365212400,1749535957154,-434.76501844,0.00021643,4]
[365212401,1749535957177,-230.0,0.00021643,4]
[365212402,1749535957199,-280.0,0.00021643,4]
[365212403,1749535957226,-460.0,0.00021643,4]
[365212404,1749535957248,-360.0,0.00021643,4]
[365212405,1749535957358,-872.11,0.00021643,4]
[365212406,1749535957381,-460.0,0.00021643,4]
[365212407,1749535957403,-360.0,0.00021643,4]
[365212408,1749535957426,-460.0,0.00021643,4]
[365212409,1749535957448,-445.63916208,0.00021643,4]
[365212410,1749535957469,-460.0,0.00021643,4]
[365212411,1749535957491,-151.0,0.0002167,4]
[365212412,1749535957512,-507.91466464,0.00021673,2]
[365212413,1749535957532,-229.6792923,0.00021689,2]
[365212414,1749535957552,-160.0,0.00021689,2]
[365212415,1749535957572,-160.0,0.00021689,2]
[365212416,1749535957592,-842.5625,0.00021689,2]
[365212417,1749535957612,-424.12530924,0.00021689,2]
[365212418,1749535957632,-834.9046531,0.00021689,2]
[365212419,1749535957652,-160.0,0.00021689,2]
[365212420,1749535957672,-160.09001568,0.00021697,4]
[365212421,1749535957693,-210.30817984,0.00021742,2]
[365212422,1749535957722,-235.72673649,0.000219,6]
[365212423,1749535957743,-460.0,0.00021917,4]
[365212424,1749535957766,-84.54265302,0.00021917,4]
[365212427,1749536094945,165.842802,0.00013699,2]
[365212429,1749536150661,324.0,0.000245,120]
[365212433,1749536434672,2994.0,0.00024718,120]
[365212443,1749536720651,-300.64309809,0.00018339,6]
[365212444,1749536722440,-166.5461409,0.00018339,6]
[365212445,1749536726095,-255.6404125,0.00018339,6]
[365212446,1749536727795,-165.88778093,0.00018339,6]
[365212455,1749536821889,-173.899304,0.00018339,6]
[365212456,1749536824166,-213.48860928,0.00018339,6]
[365212457,1749536827446,-285.27418338,0.00018339,6]
[365212458,1749536833216,-325.92725365,0.00018339,6]
[365212459,1749536835512,-178.21868232,0.00018339,6]
[365212460,1749536838443,-213.65266235,0.00018339,6]
[365212461,1749536840749,-223.14975991,0.00018339,6]
[365212462,1749536842335,-295.82490863,0.00018339,6]
[365212463,1749536865756,-151.06405933,0.00018339,6]
[365212464,1749536869865,-230.91,0.00018,2]
[365212465,1749536871441,-278.37449426,0.00018,2]
[365212466,1749536874290,-224.66716219,0.00018,2]
[365212467,1749536875935,-226.84863573,0.00018,2]
[365212468,1749536877680,-153.95114488,0.00018,2]
[365212469,1749536880522,-255.11607998,0.00018,2]
[365212470,1749536884386,-277.46332939,0.00018,2]
[365212471,1749536886595,-222.25790411,0.00018,2]
[365212472,1749536888246,-158.96908279,0.00018,2]
[365212473,1749536890495,-221.71357071,0.00018,2]
[365212477,1749536893447,-311.69021767,0.00018,2]
[365212479,1749536896655,-263.39421964,0.00018,2]
[365212480,1749536899406,-163.484949,0.00018,2]
[365212481,1749536901741,-23.54930474,0.00018,2]
[365212506,1749537031835,-5000.0,0.00018414,2]
[365212508,1749537031844,-157.19227933,0.000186,2]
[365212698,1749537037902,-5000.0,0.00018414,2]
[365212700,1749537037911,-54.16867079,0.000186,2]
[365212702,1749537037920,-165.88778093,0.000187,2]
[365212704,1749537037929,-262.1880352,0.000189,2]
[365212706,1749537037938,-1832.5149981,0.00019076,2]
[365212708,1749537037947,-235.334042,0.00019319,2]
[365212710,1749537037957,-190.263646,0.00019829,2]
[365212712,1749537037966,-752.0,0.00019856,2]
[365212714,1749537037976,-300.0,0.00019858,2]
[365212716,1749537037985,-300.0,0.00019858,2]
[365212718,1749537037994,-24230.9712343,0.00019859,2]
[365212720,1749537038005,-164.11610672,0.0002,2]
[365212722,1749537038014,-281.09233491,0.000201,2]
[365212724,1749537038023,-281.09233479,0.000201,2]
[365212725,1749537038033,-572.72,0.0002022,2]
[365212727,1749537038042,-281.09233479,0.00020245,2]
[365212729,1749537038052,-166.0,0.00020274,2]
[365212731,1749537038061,-281.09233479,0.00020417,3]
[365212733,1749537038071,-281.09233479,0.0002059,3]
[365212735,1749537038080,-281.09233479,0.00020762,3]
[365212737,1749537038090,-164.11610672,0.0002077,2]
[365212739,1749537038099,-281.09233479,0.00020934,4]
[365212742,1749537038110,-4132.91782139,0.00021,2]
[365212744,1749537038120,-460.0,0.00021095,4]
[365212745,1749537038129,-440.0,0.00021095,4]
[365212747,1749537038138,-440.0,0.00021095,4]
[365212749,1749537038147,-433.32882922,0.00021095,4]
[365212751,1749537038156,-440.0,0.00021095,4]
[365212753,1749537038166,-440.0,0.00021095,4]
[365212755,1749537038175,-460.0,0.00021095,4]
[365212757,1749537038185,-440.0,0.00021095,4]
[365212759,1749537038193,-440.0,0.00021095,4]
[365212761,1749537038203,-430.0,0.00021095,4]
[365212763,1749537038213,-430.0,0.00021095,4]
[365212765,1749537038222,-430.0,0.00021095,4]
[365212767,1749537038231,-430.0,0.00021095,4]
[365212769,1749537038240,-430.0,0.00021095,4]
[365212771,1749537038250,-460.0,0.00021095,4]
[365212772,1749537038259,-440.0,0.00021095,4]
[365212773,1749537038268,-440.0,0.00021095,4]
[365212775,1749537038278,-460.0,0.00021095,4]
[365212777,1749537038287,-341.96190903,0.00021095,4]
[365212779,1749537038296,-437.80626799,0.00021095,4]
[365212781,1749537038305,-460.0,0.00021095,4]
[365212783,1749537038315,-298.72084415,0.00021095,4]
[365212784,1749537038324,-460.0,0.00021095,4]
[365212785,1749537038333,-460.0,0.00021095,4]
[365212786,1749537038342,-538.65255202,0.00021095,4]
[365212787,1749537038351,-440.0,0.00021095,4]
[365212788,1749537038359,-430.0,0.00021095,4]
[365212789,1749537038368,-440.0,0.00021095,4]
[365212790,1749537038378,-447.15891941,0.00021095,4]
[365212791,1749537038386,-430.0,0.00021095,4]
[365212793,1749537038395,-279.71860856,0.00021095,4]
[365212795,1749537038404,-440.0,0.00021095,4]
[365212797,1749537038414,-440.0,0.00021095,4]
[365212799,1749537038423,-440.0,0.00021095,4]
[365212801,1749537038432,-440.0,0.00021095,4]
[365212803,1749537038441,-440.0,0.00021095,4]
[365212805,1749537038452,-253.78327231,0.00021095,4]
[365212807,1749537038463,-440.0,0.00021095,4]
[365212809,1749537038472,-405.25564573,0.00021095,4]
[365212811,1749537038482,-440.0,0.00021095,4]
[365212813,1749537038491,-430.0,0.00021095,4]
[365212815,1749537038502,-460.0,0.00021095,4]
[365212816,1749537038511,-460.0,0.00021095,4]
[365212819,1749537038520,-460.0,0.00021095,4]
[365212821,1749537038531,-460.0,0.00021095,4]
[365212823,1749537038541,-502.12,0.00021095,4]
[365212825,1749537038550,-460.0,0.00021095,4]
[365212827,1749537038559,-460.0,0.00021095,4]
[365212828,1749537038568,-440.7665474,0.00021095,4]
[365212830,1749537038577,-460.0,0.00021095,4]
[365212832,1749537038587,-424.09902209,0.00021095,4]